bitfinex/quotes_ETHUSD_20240825
["timestamp","ask_amount","ask_price","bid_price","bid_amount"]
[1724567537361,1.13237307,2760.8,2760.5,0.34000899]
[1724567537572,3.60907307,2760.9,2760.5,0.34000899]
[1724567537885,3.60907307,2760.9,2760.5,3.62251]
[1724567538595,3.60907307,2760.9,2760.5,3.96252636]
[1724567538822,3.60907307,2760.9,2760.5,3.62251]
[1724567538968,3.60907307,2760.9,2760.5,3.96252636]
[1724567539296,3.60907307,2760.9,2760.5,3.62251]
[1724567539504,3.60907307,2760.9,2760.5,3.96252636]
[1724567539703,3.60907307,2760.9,2760.5,3.62251]
[1724567539997,3.60907307,2760.9,2760.5,3.96252636]
[1724567540204,3.60907307,2760.9,2760.5,3.62251]
[1724567540357,3.60907307,2760.9,2760.5,3.96252636]
[1724567540555,3.60907307,2760.9,2760.5,3.62251]
[1724567540785,3.60907307,2760.9,2760.5,3.96252636]
[1724567540982,3.60907307,2760.9,2760.5,3.62251]
[1724567541369,3.60907307,2760.9,2760.5,3.96252636]
[1724567541585,3.60907307,2760.9,2760.5,3.62251]
[1724567542258,3.60907307,2760.9,2760.5,3.96252636]
[1724567542572,3.60907307,2760.9,2760.5,3.62251]
[1724567542819,3.60907307,2760.9,2760.5,3.96252636]
[1724567543121,3.60907307,2760.9,2760.5,3.62251]
[1724567543350,1.13237307,2760.9,2760.5,3.96252636]
[1724567543607,1.13237307,2760.9,2760.5,3.62251]
[1724567543864,1.13237307,2761.0,2760.5,7.62147567]
[1724567544022,1.13237307,2761.0,2760.6,3.96233636]
[1724567544898,4.75420307,2761.1,2760.6,3.96233636]
[1724567545774,3.41387307,2761.0,2760.6,0.34001636]
[1724567545974,1.13237307,2760.9,2760.5,3.96252636]
[1724567547124,3.41387307,2761.0,2760.5,3.96252636]
[1724567547335,1.13237307,2761.0,2760.5,3.96252636]
[1724567547708,1.13237307,2761.0,2760.5,3.62251]
[1724567547907,1.13237307,2761.0,2760.7,1.26764931]
[1724567548112,1.50983076,2761.1,2761.0,9.57994]
[1724567548437,7.46,2761.6,2761.3,2.3362]
[1724567548642,1.89123108,2761.8,2761.5,4.88878931]
[1724567548873,12.59033076,2762.1,2761.5,4.88878931]
[1724567548874,1.13237307,2762.0,2761.5,4.88878931]
[1724567549190,1.13237307,2762.0,2761.5,1.26764931]
[1724567550296,1.13237307,2761.9,2761.5,1.26764931]
[1724567550495,2.4133,2761.8,2761.2,3.62157]
[1724567550821,2.4133,2761.8,2761.2,7.24309]
[1724567551020,3.54567307,2761.8,2761.2,3.62152]
[1724567551223,4.75654642,2761.8,2761.2,3.62152]
[1724567551433,4.75654642,2761.8,2761.3,3.62147]
[1724567551639,3.62417335,2761.8,2761.3,3.62147]
[1724567552349,4.75654642,2761.8,2761.3,3.62147]
[1724567552755,4.75654642,2761.8,2761.1,2.3362]
[1724567552756,8.37744642,2761.8,2761.1,2.3362]
[1724567553047,3.62117,2761.6,2761.1,3.62173]
[1724567554055,2.24786572,2761.7,2761.2,3.62158]
[1724567554201,1.13237307,2761.7,2761.2,3.62158]
[1724567554719,7.16654307,2761.8,2761.2,3.62158]
[1724567555247,1.13237307,2761.7,2761.2,3.62158]
[1724567555547,7.16654307,2761.8,2761.2,3.62158]
[1724567556816,7.16654307,2761.8,2761.2,5.95778]
[1724567557001,2.00001045,2761.7,2761.2,3.62158]
[1724567557400,2.00001045,2761.7,2761.0,9.57974]
[1724567557401,5.62104045,2761.7,2761.0,9.57974]
[1724567557656,0.86763738,2761.7,2761.1,3.62174]
[1724567558025,4.48860738,2761.7,2761.1,3.62174]
[1724567558336,4.48860738,2761.7,2761.2,3.6216]
[1724567559210,0.86763738,2761.7,2761.2,7.24312]
[1724567559410,0.86763738,2761.7,2761.2,3.62152]
[1724567559611,0.86763738,2761.7,2761.4,3.62131]
[1724567559920,4.75317307,2761.9,2761.4,5.93841]
[1724567560146,1.13237307,2762.0,2761.4,5.93841]
[1724567560652,4.75317307,2761.9,2761.3,3.62147]
[1724567560851,0.98835838,2761.8,2761.3,3.62147]
[1724567561556,2.3136,2761.7,2761.3,3.62147]
[1724567564358,2.3136,2761.7,2761.3,3.62148]
[1724567566366,2.3136,2761.7,2761.2,3.62152]
[1724567566651,2.3136,2761.7,2761.3,3.62148]
[1724567567724,1.13237307,2761.9,2761.4,5.93838]
[1724567567928,11.28343076,2762.1,2761.4,5.93838]
[1724567567929,16.03625383,2762.1,2761.6,3.621]
[1724567568557,1.13237307,2762.0,2761.4,5.93833]
[1724567569242,1.13237307,2762.0,2761.5,3.62121]
[1724567569415,3.09803645,2762.0,2761.5,3.62121]
[1724567569822,2.3136,2761.9,2761.2,3.62154]
[1724567570032,3.44597307,2761.9,2761.2,3.62154]
[1724567570233,7.2418,2761.8,2761.2,3.62154]
[1724567570934,7.24181,2761.8,2761.2,3.62154]
[1724567571133,3.15101831,2761.7,2761.0,3.62178]
[1724567572161,3.62109,2761.6,2761.1,3.62174]
[1724567572625,3.62109,2761.6,2761.0,3.62178]
[1724567572823,2.3136,2761.5,2760.8,3.62203]
[1724567573015,3.62143,2761.4,2760.8,3.62203]
[1724567573438,3.62149,2761.3,2760.8,3.62203]
[1724567574944,3.62149,2761.3,2760.8,7.24409]
[1724567575155,5.93492,2761.5,2760.8,7.24409]
[1724567575462,3.50953764,2761.5,2760.8,7.24409]
[1724567575635,3.62135,2761.4,2760.8,3.62203]
[1724567575832,3.62135,2761.4,2760.8,7.24409]
[1724567576929,3.62135,2761.4,2760.9,3.62196]
[1724567577143,13.48445641,2761.6,2761.2,3.6216]
[1724567577144,8.59237307,2761.6,2761.2,3.6216]
[1724567577343,7.46,2761.6,2761.2,3.6216]
[1724567577744,8.5177503,2761.6,2761.2,3.6216]
[1724567578726,8.5177503,2761.6,2761.0,5.93885]
[1724567578985,3.6213,2761.5,2760.8,6.05013]
[1724567579121,2.2737,2761.4,2760.8,9.67218]
[1724567579322,2.2737,2761.4,2760.8,6.05005]
[1724567579521,5.89508,2761.4,2760.8,9.6721]
[1724567579758,5.89508,2761.4,2760.8,6.05005]
[1724567579965,5.89508,2761.4,2760.9,3.62199]
[1724567580292,5.89508,2761.4,2760.7,1.27092334]
[1724567580293,3.62161,2761.2,2760.7,4.89318334]
[1724567580472,7.93881167,2761.4,2760.7,8.51544334]
[1724567580473,11.56027167,2761.4,2760.7,8.51544334]
[1724567580771,3.6215,2761.3,2760.7,8.51537334]
[1724567581809,2.2737,2761.4,2760.8,3.62211]
[1724567582108,2.2737,2761.4,2761.0,3.62186]
[1724567582810,2.2737,2761.4,2760.8,3.62202]
[1724567583169,2.2737,2761.4,2760.8,4.65411433]
[1724567584213,13.40983364,2761.6,2761.2,6.04958]
[1724567584214,8.59237307,2761.6,2761.2,6.04958]
[1724567584378,7.46,2761.6,2761.2,6.04958]
[1724567584583,8.59237307,2761.6,2761.2,3.62158]
[1724567585079,9.55175221,2761.6,2761.2,3.62158]
[1724567585777,2.09175221,2761.6,2761.2,3.62158]
[1724567586577,2.09175221,2761.6,2761.0,7.24355]
[1724567586768,4.75348307,2761.6,2761.0,3.62176]
[1724567586994,4.75348307,2761.6,2761.0,7.24356]
[1724567587300,4.75348307,2761.6,2761.0,3.62176]
[1724567587492,1.13237307,2761.5,2761.0,3.62176]
[1724567587717,1.13237307,2761.5,2761.0,7.24355]
[1724567588712,1.13237307,2761.5,2761.0,3.62176]
[1724567589581,1.13237307,2761.5,2761.0,7.24356]
[1724567589787,1.13237307,2761.5,2761.0,3.62176]
[1724567590919,1.13237307,2761.5,2761.0,8.44103277]
[1724567591122,1.13237307,2761.5,2761.2,6.04959]
[1724567591617,1.13237307,2761.5,2761.3,3.62148]
[1724567591781,1.13237307,2761.6,2761.2,6.04959]
[1724567592396,1.13237307,2761.5,2761.2,6.04959]
[1724567592601,1.13237307,2761.5,2761.2,7.26356861]
[1724567593029,1.13237307,2761.5,2761.2,1.21397861]
[1724567593346,1.13237307,2761.5,2761.1,1.27092334]
[1724567593621,1.13237307,2761.5,2761.1,4.89261334]
[1724567593770,1.13237307,2761.5,2761.1,3.62169]
[1724567593970,3.40607307,2761.5,2761.1,3.62169]
[1724567594319,4.75372307,2761.4,2760.9,4.89292334]
[1724567594491,4.75372307,2761.4,2760.9,6.09042711]
[1724567595515,3.62135,2761.4,2760.9,6.09042711]
[1724567595698,4.75372307,2761.4,2760.9,6.09042711]
[1724567596067,4.75372307,2761.4,2760.9,2.46842711]
[1724567596378,4.75372307,2761.4,2760.8,6.05002]
[1724567596725,1.13237307,2761.5,2761.1,7.32058334]
[1724567597072,1.13237307,2761.5,2761.1,3.69892334]
[1724567597475,1.13237307,2761.5,2761.1,7.32063334]
[1724567599123,1.13237307,2761.4,2761.0,3.62186]
[1724567599327,1.13237307,2761.4,2761.0,4.71753333]
[1724567601933,1.13237307,2761.4,2761.0,8.33926333]
[1724567602143,1.13237307,2761.4,2761.0,4.71746333]
[1724567603917,1.13237307,2761.5,2761.0,4.71746333]
[1724567604354,1.13237307,2761.4,2761.0,4.71746333]
[1724567604544,1.13237307,2761.4,2761.1,0.84302867]
[1724567604730,1.13237307,2761.5,2761.1,0.84302867]
[1724567605158,1.13237307,2761.5,2761.1,4.46476867]
[1724567605342,1.13237307,2761.5,2761.1,5.73569201]
[1724567607586,1.13237307,2761.5,2761.3,3.62146]
[1724567607794,1.50983076,2761.6,2761.4,0.606336]
[1724567607795,1.13237307,2761.6,2761.4,0.606336]
[1724567608495,1.13237307,2761.6,2761.3,1.27092334]
[1724567609051,1.13237307,2761.6,2761.2,6.40340505]
[1724567609408,1.13237307,2761.6,2761.2,6.40341445]
[1724567609758,1.50983076,2761.7,2761.2,3.6216]
[1724567609760,3.49177307,2761.5,2761.2,3.6216]
[1724567610103,3.49177307,2761.5,2761.1,0.33991445]
[1724567611343,3.49177307,2761.5,2761.1,3.96163445]
[1724567611592,3.49177307,2761.5,2761.1,3.62172]
[1724567611768,3.49177307,2761.5,2761.1,3.96163445]
[1724567611968,3.49177307,2761.5,2761.1,3.62172]
[1724567612173,3.49177307,2761.5,2761.1,3.96163445]
[1724567612389,3.49177307,2761.5,2761.1,3.62172]
[1724567612590,3.49177307,2761.5,2761.1,3.96163445]
[1724567612798,3.49177307,2761.5,2761.1,3.62172]
[1724567613467,3.49177307,2761.5,2761.1,3.96165169]
[1724567614396,3.49177307,2761.5,2761.2,0.33993169]
[1724567614745,1.13237307,2761.5,2761.2,3.96154169]
[1724567615489,1.13237307,2761.5,2761.2,3.62161]
[1724567615690,1.13237307,2761.5,2761.3,3.62147]
[1724567615902,1.13237307,2761.5,2761.3,3.96138853]
[1724567617768,1.13237307,2761.5,2761.3,3.62147]
[1724567621322,1.13237307,2761.5,2761.3,3.96139099]
[1724567621668,1.13237307,2761.5,2761.4,3.62135]
[1724567623117,1.13237307,2761.5,2761.3,7.58276626]
[1724567623411,1.13237307,2761.5,2761.3,8.71232522]
[1724567623579,1.13237307,2761.5,2761.3,5.09085522]
[1724567623770,1.13237307,2761.5,2761.3,3.96129626]
[1724567624406,1.13237307,2761.7,2761.5,3.62122]
[1724567624779,1.13237307,2761.7,2761.4,3.96126626]
[1724567625399,1.13237307,2761.7,2761.5,3.6212]
[1724567626413,3.51547307,2761.7,2761.4,0.33991626]
[1724567626715,1.13237307,2761.6,2761.2,3.96144626]
[1724567627207,1.13237307,2761.5,2761.2,3.96144626]
[1724567627383,1.13237307,2761.5,2761.2,3.62153]
[1724567627584,1.13237307,2761.6,2761.2,3.96144626]
[1724567627811,1.13237307,2761.6,2761.2,3.62153]
[1724567628015,1.13237307,2761.6,2761.2,3.96144626]
[1724567628180,1.13237307,2761.6,2761.2,3.62153]
[1724567628391,1.13237307,2761.6,2761.2,3.96145195]
[1724567628603,1.13237307,2761.6,2761.2,3.62153]
[1724567629218,1.13237307,2761.6,2761.2,3.96145195]
[1724567629372,1.13237307,2761.6,2761.3,0.33992195]
[1724567629871,1.13237307,2761.6,2761.3,3.96136195]
[1724567631486,1.13237307,2761.6,2761.3,3.62144]
[1724567631917,1.13237307,2761.6,2761.3,3.9613546]
[1724567632202,1.13237307,2761.6,2761.3,4.30126946]
[1724567633392,1.13237307,2761.6,2761.3,4.30122946]
[1724567634770,1.13237307,2761.6,2761.3,3.9613146]
[1724567635272,1.13237307,2761.6,2761.3,4.30122134]
[1724567635781,3.51547307,2761.6,2761.3,0.67982134]
[1724567635934,4.01800345,2761.6,2761.3,0.67982134]
[1724567636766,3.51547307,2761.6,2761.3,0.67982134]
[1724567637331,1.13237307,2761.6,2761.3,4.30127134]
[1724567637531,1.13237307,2761.6,2761.3,3.9613646]
[1724567637772,1.13237307,2761.6,2761.3,4.30127134]
[1724567637926,1.13237307,2761.6,2761.4,0.33990674]
[1724567638367,1.13237307,2761.6,2761.3,3.9613646]
[1724567638573,1.13237307,2761.6,2761.3,4.30127143]
[1724567638774,1.13237307,2761.6,2761.3,3.9613646]
[1724567638985,1.13237307,2761.6,2761.3,4.30127072]
[1724567639496,1.13237307,2761.6,2761.3,3.9613646]
[1724567639679,1.13237307,2761.6,2761.4,0.33990528]
[1724567640552,1.13237307,2761.7,2761.4,0.33990528]
[1724567641478,1.13237307,2761.7,2761.4,0.33989292]
[1724567642488,1.13237307,2761.7,2761.5,0.33989292]
[1724567642691,1.13237307,2761.7,2761.5,3.6212]
[1724567642896,1.13237307,2761.7,2761.5,3.96109292]
[1724567643065,1.13237307,2761.7,2761.5,3.6212]
[1724567643269,1.13237307,2761.7,2761.5,3.96109292]
[1724567643466,1.13237307,2761.8,2761.5,3.6212]
[1724567643666,1.13237307,2761.8,2761.5,3.96109292]
[1724567643869,1.13237307,2761.8,2761.5,3.6212]
[1724567644158,1.13237307,2761.8,2761.5,3.96109292]
[1724567644355,1.13237307,2761.8,2761.5,3.6212]
[1724567644583,1.13237307,2761.8,2761.5,3.96109292]
[1724567644898,1.13237307,2761.8,2761.5,3.6212]
[1724567645101,1.13237307,2761.8,2761.5,3.96109292]
[1724567645395,1.13237307,2761.8,2761.4,0.33989292]
[1724567645611,1.13237307,2761.7,2761.4,0.33989292]
[1724567646148,1.13237307,2761.8,2761.5,0.33989292]
[1724567646703,1.13237307,2761.8,2761.5,0.33987972]
[1724567646850,1.13237307,2761.8,2761.6,3.62108]
[1724567647057,1.13237307,2762.1,2762.0,3.62056]
[1724567647257,5.29950129,2762.4,2762.2,6.0318]
[1724567647480,5.29950129,2762.4,2762.3,1.27092334]
[1724567647681,1.13237307,2762.6,2762.3,4.89108334]
[1724567648698,5.71987995,2762.8,2762.3,4.89108334]
[1724567648699,1.13237307,2762.7,2762.3,8.51117334]
[1724567648900,1.13237307,2762.7,2762.3,4.89101334]
[1724567649465,1.13237307,2762.8,2762.3,4.89099334]
[1724567650160,1.13237307,2762.8,2762.4,3.62002]
[1724567650366,5.12929076,2762.9,2762.4,3.62002]
[1724567650367,4.75183307,2762.9,2762.4,3.62002]
[1724567650568,6.16092037,2762.9,2762.4,3.62002]
[1724567650936,2.54146037,2762.9,2762.4,3.62002]
[1724567651167,1.13237307,2762.9,2762.6,3.61969]
[1724567651323,1.50983076,2763.0,2762.5,7.30232334]
[1724567651731,1.50983076,2763.0,2762.5,10.92213334]
[1724567652159,6.26133383,2763.1,2762.5,7.30223334]
[1724567652363,4.75150307,2763.1,2762.5,7.30223334]
[1724567652737,3.61933,2763.0,2762.5,3.68242334]
[1724567652937,1.21965638,2763.0,2762.3,7.30253334]
[1724567653172,2.3159,2762.9,2762.3,7.30253334]
[1724567654242,5.93531,2762.9,2762.4,3.62004]
[1724567655671,3.61941,2762.9,2762.4,3.62004]
[1724567656004,3.61941,2762.9,2762.5,1.27092334]
[1724567656860,3.61929,2763.0,2762.5,2.36318067]
[1724567657753,3.61939,2762.9,2762.3,7.30253334]
[1724567659363,3.61939,2762.9,2762.3,2.4115]
[1724567659565,3.61966,2762.7,2762.1,7.27837334]
[1724567659806,3.61966,2762.7,2762.1,10.89872334]
[1724567659976,3.61966,2762.7,2762.2,1.08987233]
[1724567661213,3.61966,2762.7,2762.2,4.71017233]
[1724567661869,2.3951,2762.8,2762.3,1.27092334]
[1724567662210,3.61939,2762.9,2762.3,4.89108334]
[1724567662411,3.61939,2762.9,2762.4,2.3871]
[1724567663666,3.61939,2762.9,2762.3,4.89101334]
[1724567663964,7.23888,2762.9,2762.3,4.89101334]
[1724567664717,3.61939,2762.9,2762.3,4.89101334]
[1724567666065,3.61939,2762.9,2762.3,8.51110334]
[1724567666312,3.61939,2762.9,2762.4,4.81882757]
[1724567667105,3.61939,2762.9,2762.5,2.3871]
[1724567667308,2.3951,2763.2,2762.7,1.27092334]
[1724567667513,14.69784,2763.3,2762.7,4.89054334]
[1724567667707,17.09844672,2763.3,2762.7,4.89054334]
[1724567667910,3.61899,2763.2,2762.7,4.89054334]
[1724567668267,3.61899,2763.2,2762.7,1.27092334]
[1724567668469,3.61912,2763.1,2762.6,3.61976]
[1724567669601,7.23834,2763.1,2762.5,7.27788334]
[1724567669927,3.61912,2763.1,2762.5,7.27788334]
[1724567670485,7.23835,2763.1,2762.5,7.27788334]
[1724567671530,3.61926,2763.0,2762.5,7.27788334]
[1724567671732,3.61926,2763.0,2762.5,3.65802334]
[1724567671900,7.23836,2763.1,2762.5,3.65802334]
[1724567672129,7.23836,2763.1,2762.5,7.27789334]
[1724567672130,3.61933,2763.0,2762.5,7.27789334]
[1724567673714,7.23837,2763.1,2762.5,7.27789334]
[1724567674209,3.61928,2763.0,2762.5,7.27789334]
[1724567675461,3.61912,2763.1,2762.6,2.3871]
[1724567676112,7.23832,2763.1,2762.6,2.3871]
[1724567676314,3.61912,2763.1,2762.6,2.3871]
[1724567676553,11.07894,2763.3,2762.7,1.27092334]
[1724567676755,11.07894,2763.3,2762.8,2.3871]
[1724567677653,14.69789,2763.3,2762.8,2.3871]
[1724567677860,11.07894,2763.3,2762.8,2.3871]
[1724567678029,3.61894,2763.3,2762.8,2.3871]
[1724567679162,3.61906,2763.2,2762.8,2.3871]
[1724567679364,7.23837,2763.1,2762.7,2.4371]
[1724567680165,7.23837,2763.1,2762.5,5.98054867]
[1724567680368,3.61915,2763.1,2762.6,0.59805487]
[1724567681864,3.61915,2763.1,2762.6,4.21778487]
[1724567684593,3.61893,2763.3,2762.8,2.4371]
[1724567684594,8.37027307,2763.3,2762.8,2.4371]
[1724567684892,3.61893,2763.3,2762.8,2.4371]
[1724567685092,7.23788,2763.3,2762.8,2.4371]
[1724567685307,3.61893,2763.3,2762.8,2.4371]
[1724567685486,3.61893,2763.3,2762.8,3.22967082]
[1724567685700,3.61893,2763.3,2762.8,6.84917082]
[1724567685853,12.21084307,2763.6,2763.1,1.27092334]
[1724567686049,11.07847,2763.6,2763.1,1.27092334]
[1724567687002,11.07847,2763.6,2763.2,2.4371]
[1724567687696,3.61847,2763.6,2763.2,2.4371]
[1724567687911,1.13237307,2763.7,2763.3,5.62242567]
[1724567688202,4.75062307,2763.8,2763.3,5.62242567]
[1724567688407,1.13237307,2763.8,2763.3,5.62241567]
[1724567688557,12.21045307,2763.9,2763.3,5.62241567]
[1724567689394,1.13237307,2763.8,2763.4,4.42465157]
[1724567689614,1.13237307,2763.8,2763.5,2.4371]
[1724567689806,8.59237307,2763.9,2763.5,6.05557]
[1724567690101,7.46,2763.9,2763.5,6.05557]
[1724567690307,7.46,2763.9,2763.6,0.68615216]
[1724567691406,7.46,2763.9,2763.6,4.30461216]
[1724567691613,7.46,2763.9,2763.6,0.68615216]
[1724567692683,3.61784,2764.1,2763.7,3.70802334]
[1724567692684,4.75021307,2764.1,2763.7,3.70802334]
[1724567693379,1.13237307,2764.1,2763.7,3.70802334]
[1724567693563,1.13237307,2764.1,2763.8,0.43941755]
[1724567693810,1.13237307,2764.2,2763.9,1.27092334]
[1724567693971,1.13237307,2764.3,2763.9,4.88896334]
[1724567694359,4.74979307,2764.4,2763.9,4.88896334]
[1724567695096,1.13237307,2764.4,2764.0,2.4371]
[1724567695299,7.23476,2764.5,2764.0,3.21364809]
[1724567695503,3.61743,2764.4,2764.0,3.21364809]
[1724567696368,3.61735,2764.5,2764.0,3.21364809]
[1724567697070,7.23473,2764.5,2764.0,3.21364809]
[1724567698170,1.13237307,2764.6,2763.6,2.97315216]
[1724567698171,3.61783,2764.1,2763.6,2.97315216]
[1724567698828,3.61783,2764.1,2763.6,6.59158216]
[1724567699040,3.61757,2764.3,2763.7,1.27092334]
[1724567699246,7.23522,2764.3,2763.8,2.287]
[1724567699417,7.23522,2764.3,2763.8,3.07325055]
[1724567699601,3.61757,2764.3,2763.8,3.07325055]
[1724567700040,3.61757,2764.3,2763.9,2.287]
[1724567703505,1.27092334,2764.7,2763.9,2.287]
[1724567703506,1.13237307,2764.7,2764.1,1.27092334]
[1724567703706,3.61696,2764.8,2764.3,2.287]
[1724567704027,3.61716,2764.6,2764.3,2.287]
[1724567704589,7.23396,2764.8,2764.3,2.287]
[1724567704989,3.61704,2764.7,2764.3,2.287]
[1724567705191,1.27092334,2764.5,2763.8,3.07325055]
[1724567705385,1.27092334,2764.5,2763.8,5.90517]
[1724567705644,3.61721,2764.6,2763.8,7.17609334]
[1724567705645,3.61752,2764.4,2763.8,7.17609334]
[1724567706058,3.61752,2764.4,2763.9,3.61806]
[1724567709924,3.6173,2764.5,2763.9,3.61806]
[1724567710131,3.6173,2764.5,2764.0,0.71759833]
[1724567712756,7.21087334,2764.8,2764.1,5.93416]
[1724567713044,7.21087334,2764.8,2764.2,3.61767]
[1724567713570,10.82786334,2764.8,2764.2,3.61767]
[1724567713737,10.82786334,2764.8,2764.1,5.93411]
[1724567713738,3.61702,2764.7,2764.1,5.93411]
[1724567713922,3.61702,2764.7,2764.2,0.79226317]
[1724567715228,3.61702,2764.7,2764.1,5.93411]
[1724567715568,3.61716,2764.6,2764.1,5.93411]
[1724567719238,3.61716,2764.6,2764.1,5.93411]
[1724567721120,7.23443,2764.6,2764.1,2.3164]
[1724567721347,7.23441,2764.6,2764.1,2.3164]
[1724567721664,3.61716,2764.6,2764.1,2.3164]
[1724567723934,3.61716,2764.6,2764.1,4.64477283]
[1724567724252,3.61716,2764.6,2764.2,2.4945]
[1724567724429,4.88786334,2764.8,2764.4,2.4945]
[1724567724430,3.61694,2764.8,2764.4,2.4945]
[1724567726393,11.07681,2764.9,2764.4,2.4945]
[1724567726595,11.07681,2764.9,2764.4,6.85019533]
[1724567727186,7.46,2764.9,2764.6,2.4945]
[1724567728422,7.46,2764.9,2764.7,3.61702]
[1724567728620,7.46,2764.9,2764.8,2.4945]
[1724567729370,7.46,2764.9,2764.8,6.11139]
[1724567729741,7.46,2764.9,2764.8,7.21131433]
[1724567731418,3.61627,2765.3,2764.8,7.21131433]
[1724567731767,4.74864307,2765.3,2764.8,7.21131433]
[1724567731967,3.61627,2765.3,2764.8,7.21131433]
[1724567732217,3.61627,2765.3,2764.8,8.48223767]
[1724567732396,1.13237307,2765.3,2764.8,5.98773767]
[1724567732729,12.96570432,2765.6,2764.8,5.98773767]
[1724567732730,12.20827307,2765.6,2764.9,6.71002377]
[1724567732877,1.13237307,2765.6,2765.3,2.4945]
[1724567733075,4.74801307,2765.8,2765.3,6.1107]
[1724567733277,1.13237307,2765.8,2765.3,6.18301616]
[1724567733515,1.13237307,2765.9,2765.3,6.18301616]
[1724567733728,1.13237307,2765.8,2765.3,6.18301616]
[1724567734218,4.74784307,2765.9,2765.3,6.18301616]
[1724567734578,3.6156,2765.8,2765.3,2.4945]
[1724567736207,1.13237307,2766.0,2765.6,2.4945]
[1724567736881,1.13237307,2766.0,2765.6,6.11033]
[1724567737183,1.13237307,2766.0,2765.6,2.4945]
[1724567737393,3.61533,2766.0,2765.6,2.4945]
[1724567737629,4.74770307,2766.0,2765.6,2.4945]
[1724567737813,3.61533,2766.0,2765.6,2.4945]
[1724567738993,7.23076,2766.0,2765.6,2.4945]
[1724567739521,3.61533,2766.0,2765.6,2.4945]
[1724567739970,7.23076,2766.0,2765.6,2.4945]
[1724567740125,3.61533,2766.0,2765.6,2.4945]
[1724567740326,7.23076,2766.0,2765.6,3.23264333]
[1724567741020,3.61546,2765.9,2765.6,3.23264333]
[1724567745702,1.13237307,2766.2,2765.2,1.27092334]
[1724567745703,3.61572,2765.7,2765.2,1.27092334]
[1724567745885,3.61572,2765.7,2765.3,2.4235]
[1724567746711,3.61585,2765.6,2765.3,2.4235]
[1724567751420,7.23136,2765.8,2765.3,2.4235]
[1724567752010,3.61566,2765.8,2765.3,2.4235]
[1724567754321,4.74751307,2766.2,2765.4,2.4235]
[1724567754487,4.74751307,2766.2,2764.9,7.93877377]
[1724567754488,3.61514,2766.2,2765.8,2.4235]
[1724567755958,7.23029,2766.2,2765.8,2.4235]
[1724567756535,3.61514,2766.2,2765.8,2.4235]
[1724567756981,7.23029,2766.2,2765.8,2.4235]
[1724567757331,7.23031,2766.2,2765.8,2.4235]
[1724567757536,3.61521,2766.1,2765.8,2.4235]
[1724567759752,3.61521,2766.1,2765.6,2.4411]
[1724567760068,3.61571,2765.8,2765.4,2.4411]
[1724567760274,1.13237307,2766.2,2765.4,2.4411]
[1724567760275,7.23025,2766.2,2765.4,6.05709]
[1724567760581,3.6151,2766.2,2765.7,2.4411]
[1724567761141,3.6151,2766.2,2765.7,6.05681]
[1724567761336,3.6151,2766.2,2765.7,7.15116033]
[1724567761943,7.23025,2766.2,2765.7,7.15116033]
[1724567762179,3.6151,2766.2,2765.7,7.15116033]
[1724567762568,1.27092334,2766.1,2765.7,2.4411]
[1724567762889,3.61554,2765.9,2765.4,2.4411]
[1724567763187,3.61561,2765.8,2765.4,2.4411]
[1724567764466,3.61546,2765.9,2765.4,2.4411]
[1724567764677,3.61546,2765.9,2765.4,7.15162933]
[1724567765081,3.61535,2766.0,2765.4,3.53552933]
[1724567765243,3.61548,2765.9,2765.4,2.4411]
[1724567765582,4.88619334,2766.1,2765.4,6.0571]
[1724567765888,3.61536,2766.0,2765.4,6.0571]
[1724567766203,4.88619334,2766.1,2765.5,3.61596]
[1724567766500,8.50147334,2766.1,2765.5,3.61596]
[1724567766699,4.88619334,2766.1,2765.5,3.61596]
[1724567767204,8.50147334,2766.1,2765.5,3.61596]
[1724567767491,3.61533,2766.0,2765.5,3.61596]
[1724567768171,6.24533449,2766.1,2765.5,3.61596]
[1724567768352,10.99298756,2766.1,2765.5,3.61596]
[1724567768559,7.37770756,2766.1,2765.5,3.61596]
[1724567768788,6.24533449,2766.1,2765.5,7.23186]
[1724567768991,7.37770756,2766.1,2765.5,3.6159]
[1724567769503,6.01856641,2766.1,2765.5,7.23181]
[1724567769655,6.01856641,2766.1,2765.5,7.2318]
[1724567769854,6.01856641,2766.1,2765.5,3.6159]
[1724567770103,6.01856641,2766.1,2765.6,3.61583]
[1724567770485,1.13237307,2766.0,2765.6,3.61583]
[1724567772305,1.13237307,2766.0,2765.4,6.0571]
[1724567772597,1.13237307,2765.8,2765.4,6.0571]
[1724567773208,1.13237307,2766.2,2766.0,2.4411]
[1724567773411,1.13237307,2766.3,2766.1,2.4411]
[1724567773610,1.13237307,2766.4,2766.1,2.4411]
[1724567773757,1.13237307,2766.4,2766.1,6.05621]
[1724567775174,1.13237307,2766.4,2766.1,2.4411]
[1724567776305,1.13237307,2766.4,2766.1,6.05628]
[1724567779409,1.13237307,2766.5,2766.1,6.05628]
[1724567780395,1.13237307,2766.5,2766.1,2.4411]
[1724567780866,1.13237307,2766.5,2765.8,6.05611]
[1724567780867,4.74728307,2766.4,2765.8,6.05611]
[1724567781067,4.74733307,2766.3,2765.8,7.15039233]
[1724567781877,3.61496,2766.3,2765.8,7.15039233]
[1724567782079,1.13237307,2766.4,2765.8,8.42127567]
[1724567782281,1.13237307,2766.4,2765.9,3.61545]
[1724567782617,1.13237307,2766.4,2766.0,1.20367257]
[1724567783325,4.74709307,2766.5,2766.1,2.4406]
[1724567786582,1.13237307,2766.5,2766.1,6.05579]
[1724567788303,8.59237307,2766.6,2766.1,6.05579]
[1724567788502,1.13237307,2766.6,2766.2,4.46807859]
[1724567791422,4.74699307,2766.6,2766.1,2.4406]
[1724567791781,1.13237307,2766.6,2766.1,6.05578]
[1724567792008,4.74692307,2766.6,2766.1,6.05578]
[1724567794434,1.13237307,2766.6,2766.1,6.05578]
[1724567795822,4.74698307,2766.6,2766.1,6.05578]
[1724567796993,3.61513,2766.2,2765.8,2.4133]
[1724567797509,3.6152,2766.1,2765.8,2.4133]
[1724567797897,4.74741307,2766.3,2765.8,2.4133]
[1724567798095,3.61516,2766.2,2765.8,2.4133]
[1724567798296,1.13237307,2766.1,2765.5,2.3483]
[1724567798495,3.61572,2765.7,2765.5,2.3483]
[1724567798723,3.6161,2765.5,2765.2,2.3483]
[1724567799414,4.74847307,2765.5,2764.9,2.94707377]
[1724567799609,3.61632,2765.3,2764.9,0.59877377]
[1724567799830,4.88743334,2765.1,2764.6,2.68773141]